bitfinex-derivatives/quotes_BTCF0:USTF0_20210705
["timestamp","ask_amount","ask_price","bid_price","bid_amount"]
[1625476926157,0.14511725,34322.0,34321.0,1.03328226]
[1625476926255,0.14711725,34322.0,34321.0,1.03328226]
[1625476926505,0.061,34322.0,34321.0,1.03328226]
[1625476926654,0.1494,34322.0,34321.0,1.03328226]
[1625476927105,0.061,34322.0,34321.0,1.02895489]
[1625476930664,1.09333667,34322.0,34321.0,1.02895489]
[1625476931017,1.09333667,34322.0,34321.0,2.23175053]
[1625476931917,0.061,34322.0,34321.0,2.23175053]
[1625476932320,5.0892,34322.0,34321.0,2.23175053]
[1625476932517,0.061,34322.0,34321.0,2.23175053]
[1625476933918,0.061,34322.0,34321.0,3.60785813]
[1625476936073,1.32608394,34322.0,34321.0,3.60785813]
[1625476936171,1.65036394,34322.0,34321.0,3.60785813]
[1625476936623,1.65036394,34322.0,34321.0,2.23175053]
[1625476937124,3.02881892,34322.0,34321.0,2.23175053]
[1625476937623,3.04325526,34322.0,34321.0,2.23175053]
[1625476938275,3.04125526,34322.0,34321.0,2.23175053]
[1625476938743,3.04125526,34322.0,34321.0,1.02895489]
[1625476939076,3.73104029,34322.0,34321.0,1.71850501]
[1625476947551,3.73104029,34322.0,34321.0,0.68955012]
[1625476949356,3.73104029,34322.0,34320.0,0.68795801]
[1625476949707,0.01444161,34321.0,34320.0,0.68795801]
[1625476949808,0.07344161,34321.0,34320.0,0.68795801]
[1625476949909,0.13244161,34321.0,34320.0,0.68795801]
[1625476950011,0.13244161,34321.0,34320.0,0.69228468]
[1625476950109,5.99085413,34321.0,34320.0,0.00432667]
[1625476950510,5.99085413,34321.0,34320.0,0.08591224]
[1625476950862,5.99085413,34321.0,34320.0,0.09023659]
[1625476951112,5.99085413,34321.0,34320.0,0.08591224]
[1625476951671,5.99085413,34321.0,34320.0,0.05581224]
[1625476952567,5.99085413,34321.0,34316.0,0.68780434]
[1625476952965,4.30691839,34317.0,34316.0,0.68780434]
[1625476953065,4.42491839,34317.0,34316.0,0.68780434]
[1625476953316,4.42491839,34317.0,34316.0,0.69212899]
[1625476953715,8.50131839,34317.0,34316.0,0.69212899]
[1625476953867,8.51576874,34317.0,34316.0,0.68780434]
[1625476953967,8.99691962,34317.0,34316.0,0.68780434]
[1625476954118,8.99691962,34317.0,34316.0,0.69212905]
[1625476954467,8.99691962,34317.0,34316.0,0.00432471]
[1625476955473,8.98246927,34317.0,34315.0,0.68768813]
[1625476955772,8.98246927,34317.0,34316.0,0.6880199]
[1625476956373,8.98246927,34317.0,34315.0,0.68780415]
[1625476956573,0.0869,34316.0,34315.0,0.68780415]
[1625476956674,0.2049,34316.0,34315.0,0.68780415]
[1625476957024,4.51050412,34316.0,34315.0,0.69212892]
[1625476957277,4.51050412,34316.0,34315.0,0.68780415]
[1625476957728,4.51050412,34316.0,34314.0,0.68767374]
[1625476957930,0.24057544,34315.0,34314.0,0.68767374]
[1625476958026,0.64540544,34315.0,34314.0,0.68767374]
[1625476958231,4.95029275,34315.0,34314.0,0.68767374]
[1625476958377,4.95029275,34315.0,34314.0,0.69199852]
[1625476959427,4.95029275,34315.0,34314.0,0.68767374]
[1625476959678,4.95029275,34315.0,34313.0,0.004]
[1625476959978,0.24057544,34314.0,34313.0,0.004]
[1625476960078,4.66301454,34314.0,34313.0,0.004]
[1625476962145,4.66301454,34314.0,34313.0,0.00832442]
[1625476962235,4.60401454,34314.0,34313.0,0.00832442]
[1625476962331,4.66301454,34314.0,34313.0,0.00832442]
[1625476962783,3.28564223,34314.0,34313.0,1.72664516]
[1625476963434,2.08041994,34314.0,34313.0,2.92942502]
[1625476964085,2.08041994,34314.0,34313.0,1.72664516]
[1625476964989,3.2856732,34314.0,34313.0,1.72664516]
[1625476965290,3.2856732,34314.0,34313.0,1.72264516]
[1625476967446,3.2266732,34314.0,34313.0,1.72264516]
[1625476967546,3.2856732,34314.0,34313.0,1.72264516]
[1625476967849,3.2856732,34314.0,34313.0,2.92647202]
[1625476967850,2.08041994,34314.0,34313.0,2.92647202]
[1625476968048,2.08041994,34314.0,34313.0,2.92647172]
[1625476968849,2.08041994,34314.0,34313.0,3.44198414]
[1625476969250,2.59712562,34314.0,34313.0,3.44198414]
[1625476969552,2.59712562,34314.0,34313.0,4.81735384]
[1625476970405,1.56405335,34314.0,34313.0,4.81735384]
[1625476971655,2.59732956,34314.0,34313.0,3.44198414]
[1625476972057,2.59732956,34314.0,34313.0,4.81734471]
[1625476972862,1.56405335,34314.0,34313.0,4.81734471]
[1625476973412,2.59734458,34314.0,34313.0,4.81734471]
[1625476974118,2.59734458,34314.0,34313.0,3.44198414]
[1625476975021,3.80242076,34314.0,34313.0,2.23815728]
[1625476977424,3.81687034,34314.0,34313.0,2.23815728]
[1625476981529,4.08824034,34314.0,34313.0,2.23815728]
[1625476982983,3.81687034,34314.0,34313.0,2.23815728]
[1625476983884,3.81687034,34314.0,34313.0,2.52394728]
[1625476985336,3.81687034,34314.0,34313.0,2.23815728]
[1625476986139,4.11402034,34314.0,34313.0,2.23815728]
[1625476986643,5.48903783,34314.0,34313.0,2.23815728]
[1625476987046,4.11402034,34314.0,34313.0,2.23815728]
[1625476987644,3.81687034,34314.0,34313.0,2.23815728]
[1625476987997,5.19268455,34314.0,34313.0,2.23815728]
[1625476988497,5.49521455,34314.0,34313.0,2.23815728]
[1625476991705,5.49521455,34314.0,34313.0,1.20716484]
[1625476992208,5.49521455,34314.0,34313.0,0.51983654]
[1625476992760,7.04119709,34314.0,34313.0,0.00432412]
[1625476993162,7.04119709,34314.0,34312.0,0.00433434]
[1625476993464,0.01441904,34313.0,34312.0,0.00433434]
[1625476993563,0.13241904,34313.0,34312.0,0.00433434]
[1625476993764,0.13241904,34313.0,34311.0,0.33745601]
[1625476993863,6.49023862,34313.0,34311.0,0.17655601]
[1625476993963,6.99023862,34313.0,34310.0,0.59178092]
[1625476994165,0.29957544,34311.0,34310.0,0.59178092]
[1625476994364,0.35857544,34311.0,34310.0,0.50818092]
[1625476994466,0.37300847,34311.0,34306.0,0.004]
[1625476994765,0.01443311,34310.0,34306.0,0.004]
[1625476994864,0.07343311,34310.0,34306.0,0.004]
[1625476994965,0.13243311,34310.0,34306.0,0.004]
[1625476995066,5.14928648,34307.0,34306.0,0.004]
[1625476995166,5.60694648,34307.0,34306.0,0.004]
[1625476995367,5.62137993,34307.0,34306.0,0.004]
[1625476995668,5.60694648,34307.0,34306.0,0.004]
[1625476995826,4.06219486,34307.0,34306.0,0.004]
[1625476996168,4.54334574,34307.0,34306.0,0.004]
[1625476996268,4.29208574,34307.0,34306.0,0.004]
[1625476998981,5.83546947,34307.0,34306.0,0.004]
[1625477000482,10.24446947,34307.0,34306.0,0.004]
[1625477000777,8.70108574,34307.0,34306.0,0.004]
[1625477003081,10.24078227,34307.0,34306.0,0.004]
[1625477005792,8.70108574,34307.0,34306.0,0.004]
[1625477006141,10.23917687,34307.0,34306.0,0.004]
[1625477006993,8.70108574,34307.0,34306.0,0.004]
[1625477007243,8.70108574,34307.0,34302.0,0.34405196]
[1625477007446,8.70108574,34307.0,34301.0,0.34398154]
[1625477007945,1.1965686,34303.0,34302.0,0.34401211]
[1625477008044,1.3145686,34303.0,34302.0,0.34401211]
[1625477008144,1.55514404,34303.0,34302.0,0.34401211]
[1625477008246,2.58055718,34303.0,34302.0,0.34401211]
[1625477008795,2.58055718,34303.0,34301.0,0.34401073]
[1625477009246,1.02446762,34302.0,34301.0,0.34401073]
[1625477009347,1.08346762,34302.0,34301.0,0.34401073]
[1625477009449,1.14246762,34302.0,34301.0,0.34401073]
[1625477009747,1.14246762,34302.0,34300.0,0.002]
[1625477009848,1.14246762,34302.0,34301.0,0.00432867]
[1625477011253,1.08346762,34302.0,34301.0,0.00432867]
[1625477011503,1.14246762,34302.0,34301.0,0.00432867]
[1625477011705,1.08346762,34302.0,34301.0,0.00432867]
[1625477012055,0.059,34302.0,34301.0,1.03610489]
[1625477012556,1.26571168,34303.0,34301.0,1.03610489]
[1625477012855,1.26571168,34303.0,34302.0,0.00432672]
[1625477013157,0.24057544,34303.0,34302.0,2.23967746]
[1625477013708,0.24057544,34303.0,34302.0,3.61521452]
[1625477014160,0.24057544,34303.0,34302.0,2.23967746]
[1625477014261,0.24057544,34303.0,34302.0,2.4802529]
[1625477015415,0.58275929,34303.0,34302.0,2.4802529]
[1625477016018,0.58275929,34303.0,34302.0,1.2766025]
[1625477016218,0.64175929,34303.0,34302.0,1.2766025]
[1625477016318,0.70275929,34303.0,34302.0,1.2766025]
[1625477016419,0.64375929,34303.0,34302.0,1.2766025]
[1625477016519,0.059,34303.0,34302.0,1.3356025]
[1625477016618,1.03018146,34305.0,34302.0,1.3356025]
[1625477016619,1.02589666,34304.0,34302.0,1.3356025]
[1625477016819,1.02589666,34304.0,34302.0,1.3946025]
[1625477016919,1.02589666,34304.0,34302.0,1.3356025]
[1625477017019,1.02589666,34304.0,34302.0,1.2766025]
[1625477017121,0.004,34305.0,34303.0,3.6151638]
[1625477017320,0.004,34305.0,34303.0,3.6741638]
[1625477017420,0.004,34305.0,34304.0,0.00432669]
[1625477017622,0.004,34305.0,34304.0,0.06332669]
[1625477017823,0.004,34305.0,34304.0,0.00432669]
[1625477017922,0.063,34305.0,34304.0,2.23963789]
[1625477018227,0.48515088,34305.0,34304.0,2.23963789]
[1625477018324,0.48515088,34305.0,34304.0,2.29863789]
[1625477018627,0.48515088,34305.0,34304.0,1.09500878]
[1625477018724,0.004,34305.0,34304.0,1.09500878]
[1625477019125,0.004,34305.0,34304.0,2.29873693]
[1625477019275,0.004,34305.0,34304.0,2.29673693]
[1625477020176,0.004,34305.0,34304.0,1.09300878]
[1625477020276,0.004,34305.0,34304.0,1.33358422]
[1625477020681,0.004,34305.0,34304.0,2.53732277]
[1625477021780,0.004,34305.0,34304.0,3.91295492]
[1625477022281,0.004,34305.0,34304.0,3.91095492]
[1625477025284,0.004,34305.0,34304.0,3.90895492]
[1625477027940,0.004,34305.0,34304.0,3.91327726]
[1625477028293,0.002,34307.0,34304.0,3.91327726]
[1625477028740,0.002,34307.0,34305.0,0.0043224]
[1625477028842,0.002,34307.0,34305.0,0.0633224]
[1625477028992,0.002,34307.0,34306.0,1.20403056]
[1625477029092,0.002,34307.0,34306.0,1.52051056]
[1625477029293,0.002,34307.0,34306.0,1.5248329]
[1625477029592,0.17329062,34307.0,34306.0,1.5248329]
[1625477030144,0.17329062,34307.0,34306.0,1.5838329]
[1625477032295,0.17329062,34307.0,34306.0,2.96029519]
[1625477032604,0.98153565,34313.0,34306.0,2.96029519]
[1625477032719,0.98153565,34313.0,34306.0,3.01929519]
[1625477032797,0.98153565,34313.0,34306.0,1.6428329]
[1625477032914,0.98153565,34313.0,34307.0,0.00432281]
[1625477032997,0.98153565,34313.0,34307.0,0.06332281]
[1625477033139,0.98153565,34313.0,34307.0,0.12232281]
[1625477033247,0.98153565,34313.0,34312.0,4.4339]
[1625477033353,0.98153565,34313.0,34312.0,4.5519]
[1625477033628,0.01,34315.0,34312.0,4.5519]
[1625477033697,0.01,34315.0,34312.0,4.55622236]
[1625477034001,0.01,34315.0,34313.0,0.0043222]
[1625477034098,0.01,34315.0,34313.0,0.2736422]
[1625477034201,0.01,34315.0,34313.0,0.3326422]
[1625477034301,0.008,34315.0,34314.0,0.71972632]
[1625477034400,0.008,34315.0,34314.0,0.77872632]
[1625477034500,0.008,34315.0,34314.0,0.8420485]
[1625477037159,0.008,34315.0,34314.0,0.7830485]
[1625477037357,0.002,34317.0,34314.0,0.7830485]
[1625477037758,0.002,34317.0,34315.0,0.00432216]
[1625477037857,0.002,34317.0,34315.0,0.12232216]
[1625477037958,0.002,34317.0,34315.0,0.06332216]
[1625477038307,0.002,34317.0,34316.0,0.06332222]
[1625477039409,0.002,34317.0,34316.0,0.12232222]
[1625477039558,0.002,34317.0,34316.0,0.06332222]
[1625477039809,0.002,34317.0,34316.0,0.12232222]
[1625477039958,0.002,34317.0,34316.0,0.06332222]
[1625477040058,0.002,34317.0,34316.0,0.12232222]
[1625477040158,0.002,34317.0,34316.0,0.06332222]
[1625477040258,0.002,34317.0,34316.0,0.12232222]
[1625477040459,0.002,34317.0,34316.0,0.06332222]
[1625477041414,0.002,34317.0,34316.0,0.12232222]
[1625477041565,0.002,34317.0,34316.0,0.06332222]
[1625477042465,0.002,34317.0,34316.0,0.12232222]
[1625477042667,0.002,34317.0,34316.0,0.06332222]
[1625477043467,0.002,34317.0,34316.0,0.12232222]
[1625477043567,0.002,34317.0,34316.0,0.06332222]
[1625477044674,0.002,34317.0,34316.0,0.12232222]
[1625477044772,0.002,34317.0,34316.0,0.06332222]
[1625477045326,0.002,34317.0,34316.0,0.12232222]
[1625477046331,0.002,34321.0,34316.0,0.12232222]
[1625477046830,0.002,34321.0,34317.0,0.00432108]
[1625477046931,0.002,34321.0,34317.0,0.06332108]
[1625477047032,0.002,34321.0,34317.0,0.12232108]
[1625477047331,0.002,34321.0,34318.0,0.00432108]
[1625477047534,0.002,34321.0,34318.0,0.06332108]
[1625477047886,0.002,34321.0,34318.0,0.059]
[1625477048386,0.002,34321.0,34319.0,0.00432104]
[1625477048937,0.002,34321.0,34315.0,0.00432107]
[1625477049037,0.002,34321.0,34315.0,0.12232107]
[1625477049189,0.002,34321.0,34315.0,0.118]
[1625477049439,0.002,34321.0,34316.0,0.00432106]
[1625477049539,0.002,34321.0,34316.0,0.06332106]
[1625477049640,0.002,34321.0,34316.0,0.12232106]
[1625477049990,0.002,34321.0,34317.0,0.00432106]
[1625477050091,0.002,34321.0,34317.0,0.12232106]
[1625477050442,0.002,34321.0,34320.0,0.24057544]
[1625477050542,0.002,34321.0,34320.0,0.29957544]
[1625477052750,1.19789271,34321.0,34320.0,0.29957544]
[1625477053803,0.002,34321.0,34320.0,0.29957544]
[1625477054455,0.68544575,34321.0,34320.0,0.29957544]
[1625477056010,2.90788235,34321.0,34320.0,0.29957544]
[1625477056310,0.002,34321.0,34320.0,0.29957544]
[1625477056461,0.002,34321.0,34320.0,0.30389589]
[1625477056812,2.90927867,34321.0,34320.0,0.30389589]
[1625477057617,1.71220416,34321.0,34320.0,0.30389589]
[1625477058265,1.71020416,34321.0,34320.0,0.30389589]
[1625477058467,0.48115088,34322.0,34320.0,0.30389589]
[1625477058864,0.48115088,34322.0,34321.0,0.0043205]
[1625477058964,1.67842608,34322.0,34321.0,0.0633205]
[1625477059815,3.38921249,34322.0,34321.0,0.0633205]
[1625477060769,3.4036566,34322.0,34321.0,0.0633205]
[1625477062023,3.38921249,34322.0,34321.0,0.0633205]
[1625477062323,3.40365653,34322.0,34321.0,0.0633205]
[1625477062780,2.20638133,34322.0,34321.0,0.0633205]
[1625477062894,2.20638133,34322.0,34321.0,3.6913205]
[1625477063099,2.20638133,34322.0,34321.0,3.7503205]
[1625477063179,1.17994369,34322.0,34321.0,4.43735853]
[1625477063275,0.93936825,34322.0,34321.0,4.43735853]
[1625477063490,0.93936825,34322.0,34321.0,0.80935853]
[1625477064079,0.25501948,34322.0,34321.0,1.84008371]
[1625477064280,0.24057544,34322.0,34321.0,1.84008371]
[1625477064481,0.6855486,34323.0,34321.0,2.08065915]
[1625477064780,0.6855486,34323.0,34322.0,0.69135276]
[1625477064880,0.6855486,34323.0,34322.0,1.04571276]
[1625477064980,0.6855486,34323.0,34322.0,1.10471276]
[1625477066983,0.68624146,34324.0,34322.0,2.1353383]
[1625477067383,0.68624146,34324.0,34323.0,0.68707913]
[1625477067483,0.68624146,34324.0,34323.0,0.80940065]
[1625477067734,1.71526736,34324.0,34323.0,0.80940065]
[1625477068533,1.71526736,34324.0,34323.0,0.75040065]
[1625477068635,0.68624146,34324.0,34323.0,0.75040065]
[1625477069388,1.71373008,34324.0,34323.0,0.75040065]
[1625477069889,1.71373008,34324.0,34323.0,0.80940065]
[1625477069991,1.71373008,34324.0,34323.0,1.84062758]
[1625477069992,0.68624146,34324.0,34323.0,1.84062758]
[1625477070440,0.68726176,34325.0,34323.0,1.84062758]
[1625477070540,0.68726176,34325.0,34324.0,0.24057544]
[1625477070642,0.68726176,34325.0,34324.0,0.29957544]
[1625477070741,0.68726176,34325.0,34324.0,0.35857544]
[1625477070840,0.68726176,34325.0,34324.0,0.36289673]
[1625477071041,0.002,34325.0,34324.0,0.36289673]
[1625477071896,0.002,34325.0,34324.0,0.30389673]
[1625477071993,0.68726466,34325.0,34324.0,2.0228318]
[1625477072644,0.68726466,34325.0,34324.0,2.0818318]
[1625477072745,0.68726466,34325.0,34324.0,2.0228318]
[1625477072894,1.71518513,34325.0,34324.0,2.0228318]
[1625477073196,1.71518513,34325.0,34324.0,2.0818318]
[1625477073345,1.71518513,34325.0,34324.0,2.0228318]
[1625477073447,1.71518513,34325.0,34324.0,2.0818318]
[1625477073547,1.71518513,34325.0,34324.0,2.0228318]
[1625477073646,0.68726466,34325.0,34324.0,2.0228318]
[1625477073995,0.002,34325.0,34324.0,2.0228318]
[1625477074197,0.68742713,34325.0,34324.0,2.0228318]
[1625477075249,1.71516533,34325.0,34324.0,2.0228318]
[1625477075350,1.71516533,34325.0,34324.0,2.0818318]
[1625477075450,1.71516533,34325.0,34324.0,2.0228318]
[1625477076351,1.71316533,34325.0,34324.0,2.0228318]
[1625477076801,1.71316533,34325.0,34324.0,2.0818318]
[1625477076901,1.71316533,34325.0,34324.0,2.0228318]
[1625477077703,0.68542713,34325.0,34324.0,2.0228318]
[1625477078104,0.68542713,34325.0,34324.0,2.0818318]
[1625477078205,1.71341455,34325.0,34324.0,2.0228318]
[1625477078353,1.71341455,34325.0,34324.0,2.0818318]
[1625477078505,1.71341455,34325.0,34324.0,2.0228318]
[1625477078604,1.71341455,34325.0,34324.0,2.0818318]
[1625477078952,1.71341455,34325.0,34324.0,2.0228318]
[1625477079054,0.68542713,34325.0,34324.0,2.0228318]
[1625477079153,0.68542713,34325.0,34324.0,2.0818318]
[1625477079257,0.68542713,34325.0,34324.0,2.0228318]
[1625477080008,1.71333451,34325.0,34324.0,2.0228318]
[1625477080209,1.71333451,34325.0,34324.0,2.0818318]
[1625477080357,1.71333451,34325.0,34324.0,2.0228318]
[1625477080457,0.68542713,34325.0,34324.0,2.0228318]
[1625477080559,0.68542713,34325.0,34324.0,2.0818318]
[1625477081011,0.68542713,34325.0,34324.0,2.0228318]
[1625477081209,0.92707713,34325.0,34324.0,2.0228318]
[1625477081312,0.92707713,34325.0,34324.0,1.78225636]
[1625477081510,1.95468407,34325.0,34324.0,1.78225636]
[1625477081661,1.95468407,34325.0,34324.0,1.72325636]
[1625477081760,2.01368407,34325.0,34324.0,1.72325636]
[1625477082262,4.58131348,34325.0,34324.0,0.06332129]
[1625477082561,4.82188892,34325.0,34324.0,0.06332129]
[1625477084464,5.33567529,34325.0,34324.0,0.06332129]
[1625477090278,5.33567529,34325.0,34324.0,0.58005883]
[1625477091935,5.33567529,34325.0,34324.0,1.26946853]
[1625477092284,6.87923814,34325.0,34324.0,1.26946853]
[1625477093584,6.87923814,34325.0,34324.0,0.58005883]
[1625477094634,6.89367899,34325.0,34324.0,0.58005883]
[1625477094886,6.87923814,34325.0,34324.0,0.58005883]
[1625477095136,6.89367897,34325.0,34324.0,0.58005883]
[1625477096240,6.98107897,34325.0,34324.0,0.52105883]
[1625477096491,6.98107897,34325.0,34324.0,0.49025883]
[1625477096692,2.18662912,34325.0,34321.0,0.24057544]
[1625477096791,0.0869,34324.0,34321.0,0.24057544]
[1625477096891,0.1459,34324.0,34321.0,0.29957544]
[1625477096991,0.1459,34324.0,34321.0,0.24057544]
[1625477097092,0.01445697,34323.0,34322.0,0.00431766]
[1625477097192,0.07345697,34323.0,34322.0,0.00431766]
[1625477097795,5.89435404,34323.0,34322.0,0.00431766]
[1625477098146,5.89435404,34323.0,34321.0,0.24057544]
[1625477098299,7.60485026,34323.0,34321.0,0.24057544]
[1625477098396,0.01445762,34322.0,34321.0,0.24057544]
[1625477098696,0.31403306,34322.0,34320.0,0.004]
[1625477098897,6.12628364,34322.0,34320.0,0.004]
[1625477099199,0.01445778,34321.0,34320.0,0.004]
[1625477099297,5.88558637,34321.0,34320.0,0.004]
[1625477100248,5.87112859,34321.0,34320.0,0.004]
[1625477106262,5.87112859,34321.0,34318.0,0.24057544]
[1625477106662,0.24057544,34319.0,34318.0,0.24057544]
[1625477106864,0.29957544,34319.0,34318.0,0.24057544]
[1625477106965,6.09447262,34319.0,34318.0,0.29957544]
[1625477108719,10.48587262,34319.0,34318.0,0.29957544]
[1625477111622,10.57437262,34319.0,34318.0,0.29957544]
[1625477112279,4.77947544,34319.0,34318.0,0.29957544]
[1625477112481,6.14139802,34319.0,34318.0,0.059]
[1625477112583,10.56777406,34319.0,34318.0,0.059]
[1625477115986,10.56777406,34319.0,34318.0,0.048]
[1625477117939,10.56777406,34319.0,34318.0,0.008]
[1625477118495,10.62677406,34319.0,34316.0,0.004]
[1625477118592,10.64122336,34319.0,34316.0,0.004]
[1625477118794,0.48115088,34317.0,34316.0,0.004]
[1625477118895,0.80224088,34317.0,34316.0,0.004]
[1625477118994,0.86124088,34317.0,34316.0,0.004]
[1625477119094,6.63534681,34317.0,34316.0,0.004]
[1625477119294,6.63534681,34317.0,34314.0,0.004]
[1625477119394,0.0875,34316.0,34314.0,0.004]
[1625477119497,0.1465,34316.0,34314.0,0.004]
[1625477119598,5.77421236,34315.0,34314.0,0.004]
[1625477119696,5.89221236,34315.0,34314.0,0.004]
[1625477120801,6.1327878,34315.0,34314.0,0.004]
[1625477122659,6.1327878,34315.0,34305.0,0.64365662]
[1625477122858,0.48115088,34306.0,34305.0,0.70265662]
[1625477122956,5.11418088,34306.0,34305.0,0.70265662]
[1625477123107,5.11418088,34306.0,34305.0,0.70697474]
[1625477123558,5.11418088,34306.0,34305.0,0.64797474]
[1625477124514,5.11418088,34306.0,34305.0,0.00431812]
[1625477124914,5.11418088,34306.0,34304.0,0.00431812]
[1625477129924,1.01623192,34305.0,34304.0,0.00431812]
[1625477130026,1.07523192,34305.0,34304.0,0.00431812]
[1625477131079,0.059,34305.0,34304.0,0.00431812]
[1625477131579,1.07698404,34305.0,34304.0,0.00431812]
[1625477137047,1.07698404,34305.0,34303.0,0.74969356]
[1625477137148,1.07698404,34305.0,34303.0,0.88869356]
[1625477138451,1.07698404,34305.0,34303.0,0.97454611]
[1625477138854,0.059,34305.0,34303.0,0.97454611]
[1625477139402,1.075674,34305.0,34303.0,0.88869356]
[1625477140509,1.075674,34305.0,34303.0,0.97457118]
[1625477146474,1.01728675,34304.0,34303.0,0.88869356]
[1625477146672,1.07628675,34304.0,34303.0,0.88869356]
[1625477146772,1.07628675,34304.0,34303.0,0.89300619]
[1625477147276,1.07628675,34304.0,34303.0,0.97891372]
[1625477148681,1.07628675,34304.0,34303.0,0.89300619]
[1625477149582,2.26305213,34304.0,34303.0,0.89300619]
[1625477151937,1.07628675,34304.0,34303.0,0.97895713]
[1625477152439,1.07628675,34304.0,34303.0,1.23693056]
[1625477154401,2.26401411,34304.0,34303.0,0.89300619]
[1625477155250,1.07628675,34304.0,34303.0,0.89300619]
[1625477156500,2.26543381,34304.0,34303.0,0.89300619]
[1625477158356,1.07628675,34304.0,34303.0,1.92579083]
[1625477159563,2.26493039,34304.0,34303.0,0.89300619]
[1625477160662,2.26493039,34304.0,34303.0,1.92604107]
[1625477161617,1.07628675,34304.0,34303.0,1.92604107]
[1625477164267,1.07628675,34304.0,34303.0,3.13150627]
[1625477164366,1.01728675,34304.0,34303.0,3.13150627]
[1625477164772,0.002,34305.0,34303.0,4.50921127]
[1625477164871,0.061,34305.0,34303.0,4.50921127]
[1625477165121,0.061,34305.0,34304.0,0.004308]
[1625477165323,0.061,34305.0,34304.0,3.92034349]
[1625477166474,0.002,34305.0,34304.0,3.92034349]
[1625477167330,0.34332477,34305.0,34304.0,3.92034349]
[1625477167928,0.002,34305.0,34304.0,3.92034349]
[1625477173939,0.34422847,34305.0,34304.0,5.47187524]
[1625477175841,0.002,34305.0,34304.0,5.47187524]
[1625477175941,0.002,34305.0,34304.0,5.81187524]
[1625477176293,0.002,34306.0,34304.0,5.81187524]
[1625477176593,0.34273746,34305.0,34304.0,5.81187524]
[1625477176844,0.34273746,34305.0,34304.0,5.80756724]
[1625477177043,0.34273746,34305.0,34304.0,5.81187431]
[1625477177144,0.08585046,34305.0,34304.0,5.81187431]
[1625477177698,0.34292981,34305.0,34304.0,5.81187431]
[1625477177795,0.34292981,34305.0,34304.0,5.98187431]
[1625477178294,0.34292981,34305.0,34304.0,6.06187431]
[1625477180256,0.002,34306.0,34304.0,6.06187431]
[1625477180506,0.3425327,34305.0,34304.0,6.06187431]
[1625477181657,0.002,34306.0,34304.0,6.06187431]
[1625477181958,0.002,34306.0,34305.0,3.62017999]
[1625477182059,0.002,34306.0,34305.0,3.68348777]
[1625477182812,0.68685271,34306.0,34305.0,4.37298473]
[1625477182910,0.68685271,34306.0,34305.0,4.58202473]
[1625477185320,0.68485271,34306.0,34305.0,4.58202473]
[1625477186668,0.51307784,34306.0,34305.0,5.09903106]
[1625477188323,0.51307784,34306.0,34305.0,5.15803106]
[1625477188574,0.51307784,34306.0,34305.0,9.89873106]
[1625477188927,0.002,34307.0,34305.0,11.44942754]
[1625477189024,0.002,34307.0,34305.0,6.70872754]
[1625477189325,0.002,34307.0,34306.0,2.41645321]
[1625477189425,0.002,34307.0,34306.0,6.73781846]
[1625477189826,0.002,34307.0,34306.0,6.74645759]
[1625477191429,0.002,34307.0,34306.0,6.73781846]
[1625477191783,0.002,34307.0,34306.0,6.73349818]
[1625477191980,0.002,34307.0,34306.0,6.74645806]
[1625477193281,0.002,34307.0,34306.0,6.73781906]
[1625477195942,0.002,34307.0,34306.0,6.74645776]
[1625477196139,0.002,34307.0,34306.0,8.46742317]
[1625477197089,0.002,34307.0,34306.0,6.74645776]
[1625477197240,0.002,34307.0,34306.0,6.73781906]
[1625477197339,0.002,34308.0,34306.0,6.73781906]
[1625477197590,0.002,34308.0,34307.0,6.36548784]
[1625477197690,0.002,34308.0,34307.0,6.42448784]
[1625477197790,0.002,34308.0,34307.0,6.48780856]
[1625477206267,0.002,34309.0,34307.0,6.48780856]
[1625477206625,0.002,34309.0,34308.0,0.00432059]
[1625477206719,0.002,34309.0,34308.0,0.06332059]
[1625477206820,0.002,34309.0,34308.0,0.12232059]
[1625477206920,0.002,34309.0,34308.0,6.4828252]
[1625477207321,0.002,34309.0,34308.0,6.47850461]
[1625477207522,0.002,34309.0,34308.0,6.71908005]
[1625477207624,0.002,34309.0,34308.0,6.72340094]
[1625477207825,0.002,34309.0,34308.0,6.66440094]
[1625477208375,3.5533,34309.0,34308.0,3.74200693]
[1625477208825,3.80925508,34309.0,34308.0,3.74200693]
[1625477209176,0.25795508,34309.0,34308.0,3.74200693]
[1625477211031,0.002,34309.0,34308.0,0.30389633]
[1625477211330,0.002,34309.0,34308.0,0.36289633]
[1625477211532,0.002,34309.0,34308.0,5.17852277]
[1625477213635,0.002,34309.0,34308.0,5.11952277]
[1625477213836,0.002,34309.0,34308.0,5.17852277]
[1625477213937,0.002,34309.0,34308.0,5.11952277]
[1625477214037,0.002,34309.0,34308.0,5.17852277]
[1625477215241,0.002,34310.0,34308.0,5.17852277]
[1625477215540,0.002,34310.0,34309.0,0.00432071]
[1625477215743,0.002,34310.0,34309.0,0.06332071]
[1625477216046,0.002,34310.0,34309.0,4.88086562]
[1625477216693,0.25841944,34310.0,34309.0,4.88086562]
[1625477217796,0.002,34310.0,34309.0,4.88086562]
[1625477218298,0.08739812,34310.0,34309.0,4.88086562]
[1625477219402,0.25798155,34310.0,34309.0,4.88086562]
[1625477219952,0.08739812,34310.0,34309.0,4.88086562]
[1625477221310,0.51363862,34310.0,34309.0,4.88086562]
[1625477221914,1.02517461,34310.0,34309.0,4.88086562]
[1625477222012,0.85457159,34310.0,34309.0,4.88086562]
[1625477224019,1.19490129,34310.0,34309.0,4.88086562]
[1625477224620,2.21706036,34310.0,34309.0,4.88086562]
[1625477225421,2.27606036,34310.0,34309.0,4.88086562]
[1625477227275,2.27406036,34310.0,34309.0,4.88086562]
[1625477233736,1.25190129,34310.0,34309.0,4.88086562]
[1625477237048,1.19290129,34310.0,34309.0,4.88086562]
[1625477238106,0.59175489,34311.0,34309.0,6.43192702]
[1625477238502,0.59175489,34311.0,34310.0,0.00432182]
[1625477238605,0.0863469,34311.0,34310.0,6.67179494]
[1625477238704,0.0863469,34311.0,34310.0,6.73079494]
[1625477238803,0.0863469,34311.0,34310.0,6.78979494]
[1625477239603,0.002,34311.0,34310.0,6.78979494]
[1625477239704,0.002,34311.0,34310.0,7.03037038]
[1625477242158,0.002,34311.0,34310.0,8.75346526]
[1625477247570,0.002,34311.0,34310.0,8.76401868]
[1625477249224,0.002,34312.0,34310.0,8.76401868]
[1625477249424,0.002,34312.0,34310.0,8.75346526]
[1625477249525,0.002,34312.0,34311.0,0.00432221]
[1625477249625,0.002,34312.0,34311.0,0.06332221]
[1625477249729,0.002,34312.0,34311.0,8.21995588]